[Event "January 9 Early 2024"]
[Site "https://www.chess.com"]
[Date "2024.01.11"]
[Round "7"]
[White "Tejedor Fuente, Enrique"]
[Black "Sadhwani, Raunak"]
[Result "1/2-1/2"]
[Board "266"]
[TimeControl "180+1"]
[WhiteFideId "2299100"]
[BlackFideId "35093487"]
[WhiteElo "2728"]
[BlackElo "3054"]
[WhiteTeam "ESP"]
[BlackTeam "IND"]
[WhiteClock "0:00:02"]
[BlackClock "0:00:03"]

1. b3 {[%clk 0:02:54]}  g6 {[%clk 0:03:00]} 2. Bb2 {[%clk 0:02:55]}  Nf6 {[%clk 0:03:00]} 3. Bxf6 {[%clk 0:02:55]}  exf6 {[%clk 0:03:01]} 4. c4 {[%clk 0:02:56]}  f5 {[%clk 0:03:01]} 5. e3 {[%clk 0:02:56]}  d5 {[%clk 0:03:00]} 6. cxd5 {[%clk 0:02:56]}  Qxd5 {[%clk 0:03:01]} 7. Nc3 {[%clk 0:02:56]}  Qd8 {[%clk 0:03:01]} 8. Nge2 {[%clk 0:02:39]}  Bg7 {[%clk 0:03:00]} 9. g3 {[%clk 0:02:38]}  O-O {[%clk 0:02:59]} 10. Bg2 {[%clk 0:02:38]}  c6 {[%clk 0:02:56]} 11. O-O {[%clk 0:02:38]}  Nd7 {[%clk 0:02:56]} 12. d4 {[%clk 0:02:38]}  Nf6 {[%clk 0:02:56]} 13. b4 {[%clk 0:02:38]}  Bd7 {[%clk 0:02:55]} 14. b5 {[%clk 0:02:36]}  cxb5 {[%clk 0:02:54]} 15. Bxb7 {[%clk 0:02:36]}  Rb8 {[%clk 0:02:55]} 16. Bg2 {[%clk 0:02:37]}  a5 {[%clk 0:02:55]} 17. a3 {[%clk 0:02:35]}  Qe7 {[%clk 0:02:51]} 18. Nf4 {[%clk 0:02:34]}  Rfc8 {[%clk 0:02:51]} 19. Qd3 {[%clk 0:02:32]}  Qd6 {[%clk 0:02:45]} 20. Rfb1 {[%clk 0:02:17]}  b4 {[%clk 0:02:27]} 21. axb4 {[%clk 0:02:18]}  axb4 {[%clk 0:02:28]} 22. Na4 {[%clk 0:02:13]}  Ne4 {[%clk 0:01:51]} 23. Nb2 {[%clk 0:01:49]}  Bb5 {[%clk 0:01:48]} 24. Qb3 {[%clk 0:01:26]}  Nd2 {[%clk 0:01:43]} 25. Qd5 {[%clk 0:01:26]}  Qe7 {[%clk 0:00:47]} 26. Rc1 {[%clk 0:01:20]}  Rd8 {[%clk 0:00:47]} 27. Qa2 {[%clk 0:01:13]}  Ne4 {[%clk 0:00:44]} 28. Nd1 {[%clk 0:01:09]}  h5 {[%clk 0:00:41]} 29. h4 {[%clk 0:01:08]}  Kh7 {[%clk 0:00:39]} 30. Bf1 {[%clk 0:00:52]}  Bxf1 {[%clk 0:00:32]} 31. Kxf1 {[%clk 0:00:53]}  b3 {[%clk 0:00:30]} 32. Qe2 {[%clk 0:00:53]}  Bh6 {[%clk 0:00:28]} 33. Nd3 {[%clk 0:00:50]}  Qe6 {[%clk 0:00:19]} 34. Rab1 {[%clk 0:00:48]}  Qd5 {[%clk 0:00:10]} 35. Kg1 {[%clk 0:00:47]}  Qb5 {[%clk 0:00:10]} 36. Nc3 {[%clk 0:00:42]}  Qa6 {[%clk 0:00:10]} 37. Nxe4 {[%clk 0:00:38]}  fxe4 {[%clk 0:00:10]} 38. Nf4 {[%clk 0:00:39]}  Qa4 {[%clk 0:00:07]} 39. Rc7 {[%clk 0:00:33]}  Rd7 {[%clk 0:00:07]} 40. Rc5 {[%clk 0:00:33]}  Bxf4 {[%clk 0:00:07]} 41. gxf4 {[%clk 0:00:33]}  Rdb7 {[%clk 0:00:06]} 42. Rb2 {[%clk 0:00:30]}  Qa1+ {[%clk 0:00:05]} 43. Kg2 {[%clk 0:00:30]}  Qa4 {[%clk 0:00:05]} 44. f5 {[%clk 0:00:29]}  Qd7 {[%clk 0:00:06]} 45. f4 {[%clk 0:00:24]}  Qd6 {[%clk 0:00:06]} 46. Kg3 {[%clk 0:00:21]}  Qf6 {[%clk 0:00:06]} 47. fxg6+ {[%clk 0:00:18]}  fxg6 {[%clk 0:00:07]} 48. Rg5 {[%clk 0:00:18]}  Kh8 {[%clk 0:00:04]} 49. Qc4 {[%clk 0:00:18]}  Rb4 {[%clk 0:00:03]} 50. Qd5 {[%clk 0:00:18]}  R4b6 {[%clk 0:00:03]} 51. Qxe4 {[%clk 0:00:17]}  Re6 {[%clk 0:00:03]} 52. Qd3 {[%clk 0:00:17]}  Rbe8 {[%clk 0:00:02]} 53. Re5 {[%clk 0:00:06]}  Rxe5 {[%clk 0:00:02]} 54. dxe5 {[%clk 0:00:06]}  Rxe5 {[%clk 0:00:02]} 55. Rxb3 {[%clk 0:00:06]}  Re7 {[%clk 0:00:03]} 56. Qc3 {[%clk 0:00:05]}  Qxc3 {[%clk 0:00:02]} 57. Rxc3 {[%clk 0:00:06]}  Kg7 {[%clk 0:00:03]} 58. Kf3 {[%clk 0:00:07]}  Ra7 {[%clk 0:00:04]} 59. Rc1 {[%clk 0:00:05]}  Ra2 {[%clk 0:00:04]} 60. Rh1 {[%clk 0:00:02]}  Kf6 {[%clk 0:00:05]} 61. Rh3 {[%clk 0:00:02]}  Kf5 {[%clk 0:00:05]} 62. Rg3 {[%clk 0:00:02]}  Rh2 {[%clk 0:00:04]} 63. Rg5+ {[%clk 0:00:02]}  Kf6 {[%clk 0:00:05]} 64. Kg3 {[%clk 0:00:03]}  Re2 {[%clk 0:00:06]} 65. Re5 {[%clk 0:00:03]}  Re1 {[%clk 0:00:06]} 66. Kf2 {[%clk 0:00:04]}  Rh1 {[%clk 0:00:06]} 67. Kg3 {[%clk 0:00:04]}  Rg1+ {[%clk 0:00:07]} 68. Kh2 {[%clk 0:00:04]}  Rf1 {[%clk 0:00:06]} 69. Kg2 {[%clk 0:00:04]}  Re1 {[%clk 0:00:07]} 70. Re8 {[%clk 0:00:04]}  Kf5 {[%clk 0:00:06]} 71. Kf2 {[%clk 0:00:03]}  Ra1 {[%clk 0:00:05]} 72. Re5+ {[%clk 0:00:03]}  Kf6 {[%clk 0:00:05]} 73. Rd5 {[%clk 0:00:02]}  Rh1 {[%clk 0:00:05]} 74. Kg2 {[%clk 0:00:03]}  Re1 {[%clk 0:00:05]} 75. Kf3 {[%clk 0:00:02]}  Rg1 {[%clk 0:00:05]} 76. Rd6+ {[%clk 0:00:02]}  Kg7 {[%clk 0:00:05]} 77. Rd7+ {[%clk 0:00:02]}  Kf6 {[%clk 0:00:05]} 78. Rd6+ {[%clk 0:00:02]}  Kf7 {[%clk 0:00:05]} 79. Rd2 {[%clk 0:00:03]}  Rg4 {[%clk 0:00:05]} 80. Rh2 {[%clk 0:00:02]}  Kf6 {[%clk 0:00:05]} 81. Rh1 {[%clk 0:00:02]}  Kf5 {[%clk 0:00:05]} 82. e4+ {[%clk 0:00:02]}  Kf6 {[%clk 0:00:05]} 83. Ke3 {[%clk 0:00:02]}  Rg3+ {[%clk 0:00:05]} 84. Kf2 {[%clk 0:00:02]}  Rg4 {[%clk 0:00:03]} 85. Kf3 {[%clk 0:00:01]}  Ke6 {[%clk 0:00:03]} 86. Rh2 {[%clk 0:00:02]}  Kf6 {[%clk 0:00:02]} 87. Rg2 {[%clk 0:00:03]}  Rxh4 {[%clk 0:00:02]} 88. Rg3 {[%clk 0:00:02]}  Rh1 {[%clk 0:00:02]} 89. Rg2 {[%clk 0:00:01]}  Rh3+ {[%clk 0:00:02]} 90. Rg3 {[%clk 0:00:01]}  Rh4 {[%clk 0:00:01]} 91. Rg2 {[%clk 0:00:02]}  Rh3+ {[%clk 0:00:01]} 92. Rg3 {[%clk 0:00:02]}  Rh1 {[%clk 0:00:02]} 93. Rg2 {[%clk 0:00:02]}  Rf1+ {[%clk 0:00:02]} 94. Ke3 {[%clk 0:00:03]}  Ra1 {[%clk 0:00:03]} 95. Rc2 {[%clk 0:00:03]}  Ra3+ {[%clk 0:00:03]} 96. Kf2 {[%clk 0:00:03]}  h4 {[%clk 0:00:04]} 97. Rc6+ {[%clk 0:00:03]}  Kg7 {[%clk 0:00:04]} 98. Kg2 {[%clk 0:00:03]}  Kh6 {[%clk 0:00:05]} 99. f5 {[%clk 0:00:03]}  Rg3+ {[%clk 0:00:04]} 100. Kh2 {[%clk 0:00:03]}  Kh5 {[%clk 0:00:05]} 101. f6 {[%clk 0:00:02]}  Kh6 {[%clk 0:00:05]} 102. e5 {[%clk 0:00:02]}  g5 {[%clk 0:00:04]} 103. f7+ {[%clk 0:00:02]}  Kg7 {[%clk 0:00:05]} 104. Rf6 {[%clk 0:00:02]}  Kf8 {[%clk 0:00:03]} 105. Rf5 {[%clk 0:00:02]}  g4 {[%clk 0:00:03]} 106. Rf4 {[%clk 0:00:02]}  Rh3+ {[%clk 0:00:04]} 107. Kg2 {[%clk 0:00:02]}  Rg3+ {[%clk 0:00:05]} 108. Kh2 {[%clk 0:00:02]}  Ra3 {[%clk 0:00:05]} 109. e6 {[%clk 0:00:02]}  Re3 {[%clk 0:00:05]} 110. Rf6 {[%clk 0:00:01]}  Re2+ {[%clk 0:00:05]} 111. Kg1 {[%clk 0:00:02]}  g3 {[%clk 0:00:06]} 112. Rg6 {[%clk 0:00:02]}  Re1+ {[%clk 0:00:06]} 113. Kg2 {[%clk 0:00:02]}  Re2+ {[%clk 0:00:06]} 114. Kf1 {[%clk 0:00:02]}  Rf2+ {[%clk 0:00:07]} 115. Kg1 {[%clk 0:00:03]}  Ke7 {[%clk 0:00:06]} 116. Rg8 {[%clk 0:00:02]}  h3 {[%clk 0:00:06]} 117. Rxg3 {[%clk 0:00:02]}  h2+ {[%clk 0:00:03]} 118. Kh1 {[%clk 0:00:02]}  Kxe6 {[%clk 0:00:03]} 119. Re3+ {[%clk 0:00:01]}  Kxf7 {[%clk 0:00:03]} 120. Rh3 {[%clk 0:00:01]}  Kf6 {[%clk 0:00:04]} 121. Rxh2 {[%clk 0:00:02]}  Rxh2+ {[%clk 0:00:03]} 122. Kxh2 {[%clk 0:00:02]} 1/2-1/2

[Event "January 9 Early 2024"]
[Site "https://www.chess.com"]
[Date "2024.01.11"]
[Round "8"]
[White "Dyulgerov, Volen"]
[Black "Glashausser, Sho"]
[Result "1-0"]
[Board "2"]
[TimeControl "180+1"]
[WhiteFideId "2918978"]
[BlackFideId "30908329"]
[WhiteElo "2375"]
[BlackElo "2169"]
[WhiteTeam "BUL"]
[BlackTeam "USA"]
[WhiteClock "0:02:56"]
[BlackClock "0:01:42"]

1. e4 {[%clk 0:02:53]}  c6 {[%clk 0:02:58]} 2. d4 {[%clk 0:02:53]}  d5 {[%clk 0:02:58]} 3. Nd2 {[%clk 0:02:54]}  dxe4 {[%clk 0:02:57]} 4. Nxe4 {[%clk 0:02:55]}  Nf6 {[%clk 0:02:57]} 5. Ng5 {[%clk 0:02:56]}  h6 {[%clk 0:02:52]} 6. Nxf7 {[%clk 0:02:56]}  Kxf7 {[%clk 0:02:52]} 7. Nf3 {[%clk 0:02:57]}  e6 {[%clk 0:02:40]} 8. Bd3 {[%clk 0:02:56]}  Nbd7 {[%clk 0:02:26]} 9. O-O {[%clk 0:02:56]}  Bd6 {[%clk 0:02:23]} 10. Re1 {[%clk 0:02:57]}  Re8 {[%clk 0:02:16]} 11. Ne5+ {[%clk 0:02:57]}  Kg8 {[%clk 0:02:12]} 12. Qf3 {[%clk 0:02:57]}  Nf8 {[%clk 0:01:57]} 13. Bxh6 {[%clk 0:02:57]}  gxh6 {[%clk 0:01:42]} 14. Qg3+ {[%clk 0:02:56]}  Kh8 {[%clk 0:01:42]} 15. Nf7# {[%clk 0:02:56]} 1-0

[Event "January 9 Early 2024"]
[Site "https://www.chess.com"]
[Date "2024.01.11"]
[Round "8"]
[White "Skibbe, Willi"]
[Black "Shevchuk, Olexandr"]
[Result "0-1"]
[Board "4"]
[TimeControl "180+1"]
[WhiteFideId "4682190"]
[BlackFideId "14113775"]
[WhiteElo "2370"]
[BlackElo "2511"]
[WhiteTeam "GER"]
[BlackTeam "UKR"]
[WhiteClock "0:02:19"]
[BlackClock "0:02:33"]

1. e4 {[%clk 0:03:00]}  c5 {[%clk 0:02:59]} 2. c3 {[%clk 0:03:00]}  d5 {[%clk 0:02:59]} 3. exd5 {[%clk 0:03:00]}  Qxd5 {[%clk 0:03:00]} 4. d4 {[%clk 0:03:00]}  Nf6 {[%clk 0:03:01]} 5. Nf3 {[%clk 0:03:00]}  e6 {[%clk 0:03:01]} 6. Be2 {[%clk 0:02:54]}  Nc6 {[%clk 0:03:01]} 7. O-O {[%clk 0:02:54]}  Be7 {[%clk 0:03:02]} 8. dxc5 {[%clk 0:02:48]}  Qxc5 {[%clk 0:02:58]} 9. Be3 {[%clk 0:02:48]}  Qf5 {[%clk 0:02:58]} 10. Na3 {[%clk 0:02:45]}  O-O {[%clk 0:02:57]} 11. Bd3 {[%clk 0:02:41]}  Qh5 {[%clk 0:02:57]} 12. Nd4 {[%clk 0:02:40]}  Qxd1 {[%clk 0:02:56]} 13. Raxd1 {[%clk 0:02:37]}  Ne5 {[%clk 0:02:55]} 14. Be2 {[%clk 0:02:36]}  a6 {[%clk 0:02:51]} 15. Nc4 {[%clk 0:02:36]}  Nxc4 {[%clk 0:02:50]} 16. Bxc4 {[%clk 0:02:37]}  e5 {[%clk 0:02:48]} 17. Nf3 {[%clk 0:02:35]}  Bg4 {[%clk 0:02:49]} 18. h3 {[%clk 0:02:31]}  Bxf3 {[%clk 0:02:49]} 19. gxf3 {[%clk 0:02:31]}  Rfd8 {[%clk 0:02:49]} 20. Bb6 {[%clk 0:02:30]}  Rdc8 {[%clk 0:02:43]} 21. Bb3 {[%clk 0:02:28]}  Bd8 {[%clk 0:02:37]} 22. Be3 {[%clk 0:02:27]}  Bc7 {[%clk 0:02:37]} 23. Rd2 {[%clk 0:02:20]}  Rd8 {[%clk 0:02:38]} 24. Rfd1 {[%clk 0:02:19]}  Rxd2 {[%clk 0:02:38]} 25. Rxd2 {[%clk 0:02:20]}  Rd8 {[%clk 0:02:33]} 26. Rxd8+ {[%clk 0:02:19]}  Bxd8 {[%clk 0:02:34]} 27. Bd5 {[%clk 0:02:19]}  Nxd5 {[%clk 0:02:33]} 0-1

[Event "January 9 Early 2024"]
[Site "https://www.chess.com"]
[Date "2024.01.11"]
[Round "8"]
[White "Travkina, Anastasia"]
[Black "Tasev, Dejan"]
[Result "1-0"]
[Board "5"]
[TimeControl "180+1"]
[WhiteFideId "24129151"]
[BlackFideId "936618"]
[WhiteElo "2457"]
[BlackElo "2636"]
[WhiteTeam "RUS"]
[BlackTeam "SRB"]
[WhiteClock "0:01:55"]
[BlackClock "0:02:15"]

1. e4 {[%clk 0:02:43]}  c6 {[%clk 0:02:59]} 2. d4 {[%clk 0:02:43]}  d5 {[%clk 0:03:00]} 3. Nc3 {[%clk 0:02:44]}  dxe4 {[%clk 0:03:00]} 4. Nxe4 {[%clk 0:02:44]}  Bf5 {[%clk 0:03:00]} 5. Ng3 {[%clk 0:02:44]}  Bg6 {[%clk 0:02:59]} 6. h4 {[%clk 0:02:45]}  h6 {[%clk 0:03:00]} 7. N1e2 {[%clk 0:02:45]}  Nf6 {[%clk 0:02:59]} 8. Nf4 {[%clk 0:02:45]}  Bh7 {[%clk 0:03:00]} 9. Bc4 {[%clk 0:02:45]}  Nbd7 {[%clk 0:02:58]} 10. Nfh5 {[%clk 0:02:40]}  e5 {[%clk 0:02:55]} 11. O-O {[%clk 0:02:29]}  Be7 {[%clk 0:02:47]} 12. Nxg7+ {[%clk 0:02:26]}  Kf8 {[%clk 0:02:42]} 13. N3f5 {[%clk 0:02:21]}  Bxf5 {[%clk 0:02:40]} 14. Nxf5 {[%clk 0:02:21]}  exd4 {[%clk 0:02:40]} 15. Bxh6+ {[%clk 0:02:19]}  Kg8 {[%clk 0:02:35]} 16. Qf3 {[%clk 0:02:13]}  Kh7 {[%clk 0:02:20]} 17. Bd3 {[%clk 0:02:02]}  Ne5 {[%clk 0:02:16]} 18. Nxe7+ {[%clk 0:01:58]}  Nxd3 {[%clk 0:02:15]} 19. Qxf6 {[%clk 0:01:55]} 1-0

[Event "January 9 Early 2024"]
[Site "https://www.chess.com"]
[Date "2024.01.11"]
[Round "8"]
[White "Fier, Alexandr"]
[Black "Delorme, Axel"]
[Result "1-0"]
[Board "11"]
[TimeControl "180+1"]
[WhiteFideId "2107139"]
[BlackFideId "632023"]
[WhiteElo "2741"]
[BlackElo "2515"]
[WhiteTeam "BRA"]
[BlackTeam "FRA"]
[WhiteClock "0:02:29"]
[BlackClock "0:00:40"]

1. d4 {[%clk 0:03:00]}  d5 {[%clk 0:02:59]} 2. Bg5 {[%clk 0:03:01]}  f6 {[%clk 0:02:56]} 3. Bd2 {[%clk 0:03:00]}  e5 {[%clk 0:02:55]} 4. e4 {[%clk 0:03:00]}  exd4 {[%clk 0:02:53]} 5. exd5 {[%clk 0:02:59]}  Qxd5 {[%clk 0:02:54]} 6. Nf3 {[%clk 0:02:57]}  Nc6 {[%clk 0:02:52]} 7. c3 {[%clk 0:02:56]}  Bg4 {[%clk 0:02:49]} 8. cxd4 {[%clk 0:02:56]}  Bxf3 {[%clk 0:02:48]} 9. gxf3 {[%clk 0:02:50]}  Nxd4 {[%clk 0:02:44]} 10. Bg2 {[%clk 0:02:51]}  O-O-O {[%clk 0:02:36]} 11. O-O {[%clk 0:02:49]}  Ne7 {[%clk 0:01:52]} 12. Nc3 {[%clk 0:02:47]}  Qh5 {[%clk 0:01:52]} 13. f4 {[%clk 0:02:36]}  Qxd1 {[%clk 0:01:48]} 14. Rfxd1 {[%clk 0:02:37]}  Nec6 {[%clk 0:01:43]} 15. Rac1 {[%clk 0:02:36]}  Bb4 {[%clk 0:01:40]} 16. Kf1 {[%clk 0:02:34]}  Rhe8 {[%clk 0:01:19]} 17. Be3 {[%clk 0:02:34]}  Nf5 {[%clk 0:00:54]} 18. Nd5 {[%clk 0:02:33]}  Nxe3+ {[%clk 0:00:50]} 19. fxe3 {[%clk 0:02:34]}  Bd6 {[%clk 0:00:45]} 20. a3 {[%clk 0:02:33]}  f5 {[%clk 0:00:43]} 21. b4 {[%clk 0:02:33]}  Ne7 {[%clk 0:00:43]} 22. Nc3 {[%clk 0:02:30]}  Ng8 {[%clk 0:00:41]} 23. Nb5 {[%clk 0:02:29]}  a6 {[%clk 0:00:40]} 24. Nxd6+ {[%clk 0:02:29]} 1-0

[Event "January 9 Early 2024"]
[Site "https://www.chess.com"]
[Date "2024.01.11"]
[Round "8"]
[White "Cupid, Kevin"]
[Black "Mizzi, Jack"]
[Result "0-1"]
[Board "14"]
[TimeControl "180+1"]
[WhiteFideId "7700512"]
[BlackFideId "5602521"]
[WhiteElo "2335"]
[BlackElo "2498"]
[WhiteTeam "TTO"]
[BlackTeam "MLT"]
[WhiteClock "0:00:32"]
[BlackClock "0:01:55"]

1. e4 {[%clk 0:03:00]}  c6 {[%clk 0:03:00]} 2. d3 {[%clk 0:02:49]}  d5 {[%clk 0:02:59]} 3. Nd2 {[%clk 0:02:49]}  e5 {[%clk 0:02:59]} 4. Ngf3 {[%clk 0:02:48]}  Nd7 {[%clk 0:02:59]} 5. g3 {[%clk 0:02:48]}  Ngf6 {[%clk 0:02:59]} 6. Bg2 {[%clk 0:02:49]}  Be7 {[%clk 0:02:57]} 7. O-O {[%clk 0:02:49]}  O-O {[%clk 0:02:57]} 8. Re1 {[%clk 0:02:44]}  Qc7 {[%clk 0:02:55]} 9. Nh4 {[%clk 0:02:29]}  Nc5 {[%clk 0:02:44]} 10. Nb3 {[%clk 0:02:16]}  dxe4 {[%clk 0:02:27]} 11. Nxc5 {[%clk 0:02:16]}  Bxc5 {[%clk 0:02:26]} 12. dxe4 {[%clk 0:02:16]}  Ng4 {[%clk 0:02:09]} 13. Re2 {[%clk 0:02:14]}  f5 {[%clk 0:02:04]} 14. b4 {[%clk 0:00:34]}  Bxf2+ {[%clk 0:01:59]} 15. Rxf2 {[%clk 0:00:33]}  Nxf2 {[%clk 0:01:59]} 16. Kxf2 {[%clk 0:00:32]}  Qb6+ {[%clk 0:01:55]} 17. Be3 {[%clk 0:00:32]}  fxe4+ {[%clk 0:01:55]} 0-1

[Event "January 9 Early 2024"]
[Site "https://www.chess.com"]
[Date "2024.01.11"]
[Round "8"]
[White "Rakhmatullaev, Almas"]
[Black "Djokic, Mihailo"]
[Result "1-0"]
[Board "17"]
[TimeControl "180+1"]
[WhiteFideId "14205793"]
[BlackFideId "976440"]
[WhiteElo "2838"]
[BlackElo "2671"]
[WhiteTeam "UZB"]
[BlackTeam "SRB"]
[WhiteClock "0:01:06"]
[BlackClock "0:01:47"]

1. e4 {[%clk 0:03:00]}  c5 {[%clk 0:03:00]} 2. Nf3 {[%clk 0:03:00]}  d6 {[%clk 0:03:01]} 3. d4 {[%clk 0:03:01]}  cxd4 {[%clk 0:03:02]} 4. Qxd4 {[%clk 0:03:01]}  a6 {[%clk 0:03:02]} 5. Be2 {[%clk 0:03:01]}  Nc6 {[%clk 0:03:03]} 6. Qe3 {[%clk 0:03:02]}  g6 {[%clk 0:03:04]} 7. O-O {[%clk 0:03:01]}  Bg7 {[%clk 0:03:04]} 8. h3 {[%clk 0:03:02]}  Nf6 {[%clk 0:03:05]} 9. Rd1 {[%clk 0:03:02]}  O-O {[%clk 0:03:06]} 10. Nc3 {[%clk 0:02:59]}  Be6 {[%clk 0:03:06]} 11. Rb1 {[%clk 0:02:55]}  Rc8 {[%clk 0:03:06]} 12. a3 {[%clk 0:02:56]}  b5 {[%clk 0:03:06]} 13. Qf4 {[%clk 0:02:51]}  Re8 {[%clk 0:03:05]} 14. Qh4 {[%clk 0:02:47]}  Ne5 {[%clk 0:02:53]} 15. Nxe5 {[%clk 0:02:47]}  Qb6 {[%clk 0:02:44]} 16. Be3 {[%clk 0:02:40]}  Qb7 {[%clk 0:02:44]} 17. Nf3 {[%clk 0:02:35]}  Rxc3 {[%clk 0:02:40]} 18. bxc3 {[%clk 0:02:35]}  Nxe4 {[%clk 0:02:41]} 19. Ng5 {[%clk 0:02:29]}  Nxc3 {[%clk 0:02:41]} 20. Qxh7+ {[%clk 0:02:28]}  Kf8 {[%clk 0:02:41]} 21. Nxe6+ {[%clk 0:02:27]}  fxe6 {[%clk 0:02:41]} 22. Bf3 {[%clk 0:02:17]}  d5 {[%clk 0:02:36]} 23. Bh6 {[%clk 0:02:15]}  Bxh6 {[%clk 0:02:35]} 24. Qxh6+ {[%clk 0:02:15]}  Kf7 {[%clk 0:02:36]} 25. Rd4 {[%clk 0:02:05]}  e5 {[%clk 0:02:36]} 26. Rg4 {[%clk 0:01:58]}  Rg8 {[%clk 0:02:33]} 27. Rb3 {[%clk 0:01:57]}  Qc7 {[%clk 0:02:29]} 28. Qe3 {[%clk 0:01:33]}  d4 {[%clk 0:02:29]} 29. Qd3 {[%clk 0:01:33]}  e6 {[%clk 0:02:20]} 30. h4 {[%clk 0:01:29]}  Na4 {[%clk 0:02:10]} 31. Be4 {[%clk 0:01:21]}  Nc5 {[%clk 0:02:05]} 32. Bxg6+ {[%clk 0:01:19]}  Ke7 {[%clk 0:02:02]} 33. Qf3 {[%clk 0:01:19]}  Rf8 {[%clk 0:02:00]} 34. Qg3 {[%clk 0:01:19]}  Nxb3 {[%clk 0:01:59]} 35. Qxb3 {[%clk 0:01:19]}  Qc5 {[%clk 0:01:52]} 36. Bd3 {[%clk 0:01:13]}  Kd6 {[%clk 0:01:49]} 37. Rg6 {[%clk 0:01:12]}  Qd5 {[%clk 0:01:47]} 38. Qb4+ {[%clk 0:01:06]} 1-0

[Event "January 9 Early 2024"]
[Site "https://www.chess.com"]
[Date "2024.01.11"]
[Round "8"]
[White "Vela Frago, Alberto"]
[Black "Baules Rodriguez, Jorge Luis"]
[Result "1-0"]
[Board "22"]
[TimeControl "180+1"]
[WhiteFideId "24531685"]
[BlackFideId "6600247"]
[WhiteElo "2408"]
[BlackElo "2581"]
[WhiteTeam "ESP"]
[BlackTeam "PAN"]
[WhiteClock "0:01:35"]
[BlackClock "0:00:26"]

1. e4 {[%clk 0:03:00]}  c5 {[%clk 0:02:59]} 2. c3 {[%clk 0:02:53]}  Nf6 {[%clk 0:02:59]} 3. e5 {[%clk 0:02:51]}  Nd5 {[%clk 0:02:59]} 4. d4 {[%clk 0:02:51]}  cxd4 {[%clk 0:03:00]} 5. Nf3 {[%clk 0:02:46]}  Nc6 {[%clk 0:03:00]} 6. Bc4 {[%clk 0:02:43]}  Nb6 {[%clk 0:02:59]} 7. Bb3 {[%clk 0:02:42]}  d6 {[%clk 0:02:54]} 8. exd6 {[%clk 0:02:41]}  Qxd6 {[%clk 0:02:48]} 9. Na3 {[%clk 0:02:41]}  Bf5 {[%clk 0:02:04]} 10. Nb5 {[%clk 0:02:36]}  Qd7 {[%clk 0:02:00]} 11. Nbxd4 {[%clk 0:02:33]}  Nxd4 {[%clk 0:01:52]} 12. Nxd4 {[%clk 0:02:34]}  Bg6 {[%clk 0:01:47]} 13. O-O {[%clk 0:02:30]}  e6 {[%clk 0:01:46]} 14. a4 {[%clk 0:02:23]}  a5 {[%clk 0:01:41]} 15. Qe2 {[%clk 0:02:19]}  Bc5 {[%clk 0:01:27]} 16. Rd1 {[%clk 0:02:18]}  Bxd4 {[%clk 0:01:16]} 17. Rxd4 {[%clk 0:02:19]}  Qc6 {[%clk 0:01:13]} 18. Bf4 {[%clk 0:02:12]}  O-O {[%clk 0:01:05]} 19. Rd6 {[%clk 0:02:11]}  Qc5 {[%clk 0:01:02]} 20. Rad1 {[%clk 0:02:10]}  Nd5 {[%clk 0:00:45]} 21. Bxd5 {[%clk 0:02:08]}  exd5 {[%clk 0:00:46]} 22. R1xd5 {[%clk 0:02:04]}  Qc8 {[%clk 0:00:44]} 23. h3 {[%clk 0:02:03]}  Re8 {[%clk 0:00:42]} 24. Qd2 {[%clk 0:02:00]}  Be4 {[%clk 0:00:39]} 25. Rd4 {[%clk 0:01:59]}  Bc6 {[%clk 0:00:38]} 26. Bg5 {[%clk 0:01:55]}  Qf5 {[%clk 0:00:36]} 27. Kh2 {[%clk 0:01:47]}  Re6 {[%clk 0:00:29]} 28. Rd8+ {[%clk 0:01:38]}  Re8 {[%clk 0:00:29]} 29. Rxa8 {[%clk 0:01:35]}  Rxa8 {[%clk 0:00:26]} 30. Rd8+ {[%clk 0:01:35]} 1-0

[Event "January 9 Early 2024"]
[Site "https://www.chess.com"]
[Date "2024.01.11"]
[Round "8"]
[White "Bryakin, Mikhail"]
[Black "Tarhan, Adar"]
[Result "1-0"]
[Board "23"]
[TimeControl "180+1"]
[WhiteFideId "4165314"]
[BlackFideId "34544712"]
[WhiteElo "2848"]
[BlackElo "2688"]
[WhiteTeam "SRB"]
[BlackTeam "TUR"]
[WhiteClock "0:01:12"]
[BlackClock "0:01:15"]

1. e4 {[%clk 0:02:56]}  c6 {[%clk 0:03:00]} 2. d4 {[%clk 0:02:52]}  d5 {[%clk 0:03:00]} 3. e5 {[%clk 0:02:53]}  Bf5 {[%clk 0:03:00]} 4. g4 {[%clk 0:02:54]}  Bg6 {[%clk 0:02:59]} 5. h4 {[%clk 0:02:52]}  h6 {[%clk 0:02:59]} 6. h5 {[%clk 0:02:52]}  Bh7 {[%clk 0:02:59]} 7. e6 {[%clk 0:02:52]}  fxe6 {[%clk 0:02:57]} 8. Bd3 {[%clk 0:02:53]}  Nf6 {[%clk 0:02:56]} 9. Bxh7 {[%clk 0:02:52]}  Nxh7 {[%clk 0:02:57]} 10. Nf3 {[%clk 0:02:51]}  Nd7 {[%clk 0:02:49]} 11. Bf4 {[%clk 0:02:52]}  Qb6 {[%clk 0:02:49]} 12. b3 {[%clk 0:02:40]}  Nhf6 {[%clk 0:02:47]} 13. Ne5 {[%clk 0:02:36]}  Nxe5 {[%clk 0:02:41]} 14. Bxe5 {[%clk 0:02:37]}  Nd7 {[%clk 0:02:41]} 15. f4 {[%clk 0:02:31]}  c5 {[%clk 0:02:36]} 16. c3 {[%clk 0:02:29]}  Rc8 {[%clk 0:02:34]} 17. Rh3 {[%clk 0:02:26]}  Nxe5 {[%clk 0:02:30]} 18. dxe5 {[%clk 0:02:20]}  Rg8 {[%clk 0:02:27]} 19. Qd3 {[%clk 0:02:19]}  c4 {[%clk 0:02:27]} 20. Qe3 {[%clk 0:02:06]}  Qxe3+ {[%clk 0:02:06]} 21. Rxe3 {[%clk 0:02:06]}  g6 {[%clk 0:02:06]} 22. hxg6 {[%clk 0:02:02]}  Rxg6 {[%clk 0:02:07]} 23. Rg3 {[%clk 0:02:03]}  h5 {[%clk 0:02:06]} 24. g5 {[%clk 0:02:02]}  Bg7 {[%clk 0:02:00]} 25. Nd2 {[%clk 0:01:54]}  cxb3 {[%clk 0:01:54]} 26. axb3 {[%clk 0:01:54]}  a6 {[%clk 0:01:55]} 27. Ke2 {[%clk 0:01:52]}  Kd7 {[%clk 0:01:50]} 28. Rh1 {[%clk 0:01:51]}  Rh8 {[%clk 0:01:47]} 29. Rgh3 {[%clk 0:01:52]}  Rf8 {[%clk 0:01:45]} 30. Ke3 {[%clk 0:01:51]}  Bxe5 {[%clk 0:01:44]} 31. fxe5 {[%clk 0:01:51]}  Rxg5 {[%clk 0:01:44]} 32. Nf3 {[%clk 0:01:51]}  Rg4 {[%clk 0:01:43]} 33. Kd3 {[%clk 0:01:43]}  Re4 {[%clk 0:01:39]} 34. Rg3 {[%clk 0:01:32]}  h4 {[%clk 0:01:32]} 35. Nxh4 {[%clk 0:01:25]}  Rh8 {[%clk 0:01:26]} 36. Rgh3 {[%clk 0:01:24]}  Rg8 {[%clk 0:01:17]} 37. Nf3 {[%clk 0:01:23]}  b5 {[%clk 0:01:17]} 38. Rh4 {[%clk 0:01:18]}  Rg3 {[%clk 0:01:15]} 39. Rxe4 {[%clk 0:01:17]}  dxe4+ {[%clk 0:01:14]} 40. Kxe4 {[%clk 0:01:17]}  Kc6 {[%clk 0:01:14]} 41. Rh6 {[%clk 0:01:14]}  Kc5 {[%clk 0:01:14]} 42. Rxe6 {[%clk 0:01:14]}  a5 {[%clk 0:01:14]} 43. Rxe7 {[%clk 0:01:13]}  b4 {[%clk 0:01:14]} 44. cxb4+ {[%clk 0:01:13]}  Kxb4 {[%clk 0:01:15]} 45. Rb7+ {[%clk 0:01:12]} 1-0